fUST/lending_fUST_20240919
["ID","MTS","AMOUNT","RATE_DAILY","PERIOD"]
[338513413,1726713045199,-618.46827,0.00018644,2]
[338513414,1726713045209,-618.46827,0.00018644,2]
[338513415,1726713045218,-431.051198,0.00018644,2]
[338513416,1726713045228,-431.051198,0.00018644,2]
[338513417,1726713045237,-431.051198,0.00018644,2]
[338513418,1726713045247,-431.051198,0.00018644,2]
[338513419,1726713045256,-151.0,0.00018644,2]
[338513420,1726713045266,-431.051198,0.00018644,2]
[338513421,1726713045276,-431.051198,0.00018644,2]
[338513422,1726713045285,-151.0,0.00018644,2]
[338513423,1726713045295,-151.0,0.00018644,2]
[338513424,1726713045304,-151.0,0.00018644,2]
[338513425,1726713045314,-151.0,0.00018644,2]
[338513426,1726713045325,-792.112847,0.00018644,2]
[338513427,1726713045344,-792.112847,0.00018644,2]
[338513428,1726713045353,-151.0,0.00018644,2]
[338513429,1726713045362,-792.112847,0.00018644,2]
[338513430,1726713045372,-151.0,0.00018644,2]
[338513431,1726713045382,-792.112847,0.00018644,2]
[338513432,1726713045391,-792.112847,0.00018644,2]
[338513433,1726713045400,-792.112847,0.00018644,2]
[338513434,1726713045410,-1167.101132,0.00018644,2]
[338513435,1726713045419,-1167.101132,0.00018644,2]
[338513436,1726713045429,-1167.101132,0.00018644,2]
[338513437,1726713045438,-1167.101132,0.00018644,2]
[338513438,1726713045447,-1167.101132,0.00018644,2]
[338513439,1726713045457,-1167.101132,0.00018644,2]
[338513440,1726713045466,-268.716473,0.00018644,2]
[338513441,1726713045477,-268.716473,0.00018644,2]
[338513442,1726713045486,-268.716473,0.00018644,2]
[338513443,1726713045496,-1285.332963,0.00018644,2]
[338513444,1726713045506,-1285.332963,0.00018644,2]
[338513445,1726713045515,-1285.332963,0.00018644,2]
[338513446,1726713045525,-268.716473,0.00018644,2]
[338513447,1726713045534,-268.716473,0.00018644,2]
[338513448,1726713045543,-268.716473,0.00018644,2]
[338513449,1726713045552,-1285.332963,0.00018644,2]
[338513450,1726713045562,-1285.332963,0.00018644,2]
[338513451,1726713045573,-1285.332963,0.00018644,2]
[338513452,1726713045585,-740.459773,0.00018644,2]
[338513453,1726713045595,-740.459773,0.00018644,2]
[338513454,1726713045604,-740.459773,0.00018644,2]
[338513455,1726713045613,-740.459773,0.00018644,2]
[338513456,1726713045622,-740.459773,0.00018644,2]
[338513457,1726713045632,-740.459773,0.00018644,2]
[338513458,1726713045641,-153.271254,0.00018644,2]
[338513459,1726713045650,-7302.714415,0.00018644,2]
[338513460,1726713045660,-7302.714415,0.00018644,2]
[338513461,1726713045669,-7302.714415,0.00018644,2]
[338513462,1726713045678,-7302.714415,0.00018644,2]
[338513463,1726713045687,-7302.714415,0.00018644,2]
[338513464,1726713045697,-7302.714415,0.00018644,2]
[338513465,1726713045706,-151.0,0.00018644,2]
[338513466,1726713045715,-152.558974,0.00018644,2]
[338513467,1726713045725,-151.0,0.00018644,2]
[338513468,1726713045734,-151.0,0.00018644,2]
[338513469,1726713045747,-151.0,0.00018644,2]
[338513470,1726713045756,-151.0,0.00018644,2]
[338513471,1726713045766,-408.71511,0.00018644,2]
[338513472,1726713045775,-408.71511,0.00018644,2]
[338513473,1726713045785,-408.71511,0.00018644,2]
[338513474,1726713045794,-408.71511,0.00018644,2]
[338513475,1726713045804,-408.71511,0.00018644,2]
[338513476,1726713045814,-408.71511,0.00018644,2]
[338513477,1726713045829,-408.71511,0.00018644,2]
[338513478,1726713045839,-408.71511,0.00018644,2]
[338513479,1726713045849,-1305.504111,0.00018644,2]
[338513480,1726713045861,-1305.504111,0.00018644,2]
[338513481,1726713045872,-1305.504111,0.00018644,2]
[338513482,1726713045882,-1305.504111,0.00018644,2]
[338513483,1726713045894,-1305.504111,0.00018644,2]
[338513484,1726713045905,-1305.504111,0.00018644,2]
[338513485,1726713045917,-1305.504111,0.00018644,2]
[338513486,1726713045928,-1305.504111,0.00018644,2]
[338513487,1726713045938,-2328.800438,0.00018644,2]
[338513488,1726713045948,-2328.800438,0.00018644,2]
[338513489,1726713045959,-2328.800438,0.00018644,2]
[338513490,1726713045971,-2328.80043558,0.00018644,2]
[338513491,1726713045981,-1906.867415,0.00018644,2]
[338513492,1726713045993,-1906.867415,0.00018644,2]
[338513493,1726713046004,-1906.867415,0.00018644,2]
[338513494,1726713046014,-1906.867415,0.00018644,2]
[338513495,1726713046025,-1906.867415,0.00018644,2]
[338513496,1726713046036,-1906.867415,0.00018644,2]
[338513497,1726713046046,-1182.021974,0.00018653,2]
[338513498,1726713046055,-1182.021974,0.00018653,2]
[338513499,1726713046066,-151.0,0.00018653,2]
[338513500,1726713046077,-151.0,0.00018653,2]
[338513501,1726713046087,-618.46827,0.00018653,2]
[338513502,1726713046235,-618.46827,0.00018653,2]
[338513503,1726713046245,-151.0,0.00018653,2]
[338513504,1726713046256,-151.0,0.00018653,2]
[338513506,1726713046266,-792.112847,0.00018653,2]
[338513508,1726713046276,-151.0,0.00018653,2]
[338513510,1726713046288,-792.112847,0.00018653,2]
[338513512,1726713046299,-1167.101132,0.00018653,2]
[338513514,1726713046311,-1167.101132,0.00018653,2]
[338513515,1726713046321,-268.716473,0.00018653,2]
[338513517,1726713046334,-1285.332963,0.00018653,2]
[338513518,1726713046345,-268.716473,0.00018653,2]
[338513519,1726713046355,-1285.332963,0.00018653,2]
[338513520,1726713046365,-740.459773,0.00018653,2]
[338513522,1726713046375,-740.459773,0.00018653,2]
[338513524,1726713046385,-7302.714415,0.00018653,2]
[338513526,1726713046396,-7302.714415,0.00018653,2]
[338513528,1726713046406,-29834.00209369,0.00018654,5]
[338513530,1726713046416,-151.0,0.00018654,2]
[338513532,1726713046427,-151.0,0.00018654,2]
[338513533,1726713046439,-151.0,0.00018654,2]
[338513534,1726713046448,-151.0,0.00018654,2]
[338513535,1726713046458,-208.888686,0.00018654,2]
[338513536,1726713046470,-1236.458,0.00018654,2]
[338513537,1726713046481,-1236.458,0.00018654,2]
[338513539,1726713046493,-1236.458,0.00018654,2]
[338513541,1726713046504,-1236.458,0.00018654,2]
[338513543,1726713046516,-151.0,0.00018654,2]
[338513544,1726713046528,-151.0,0.00018654,2]
[338513545,1726713046540,-151.0,0.00018654,2]
[338513546,1726713046551,-151.0,0.00018654,2]
[338513547,1726713046562,-151.0,0.00018654,2]
[338513548,1726713046574,-151.0,0.00018654,2]
[338513549,1726713046584,-752.861092,0.00018654,2]
[338513551,1726713046593,-151.0,0.00018654,2]
[338513552,1726713046602,-752.861092,0.00018654,2]
[338513553,1726713046612,-151.0,0.00018654,2]
[338513554,1726713046622,-752.861092,0.00018654,2]
[338513555,1726713046632,-752.861092,0.00018654,2]
[338513556,1726713046643,-220.045586,0.00018654,2]
[338513557,1726713046653,-220.045586,0.00018654,2]
[338513558,1726713046663,-220.045586,0.00018654,2]
[338513559,1726713046672,-220.045586,0.00018654,2]
[338513560,1726713046681,-1000.0,0.00018654,2]
[338513561,1726713046691,-1000.0,0.00018654,2]
[338513562,1726713046700,-1000.0,0.00018654,2]
[338513563,1726713046710,-1000.0,0.00018654,2]
[338513564,1726713046719,-1000.0,0.00018654,2]
[338513565,1726713046729,-1000.0,0.00018654,2]
[338513566,1726713046740,-1000.0,0.00018654,2]
[338513567,1726713046754,-1000.0,0.00018654,2]
[338513568,1726713046763,-1000.0,0.00018654,2]
[338513569,1726713046773,-1000.0,0.00018654,2]
[338513570,1726713046784,-1000.0,0.00018654,2]
[338513571,1726713046793,-1000.0,0.00018654,2]
[338513572,1726713046803,-1000.0,0.00018654,2]
[338513573,1726713046812,-1000.0,0.00018654,2]
[338513574,1726713046825,-1000.0,0.00018654,2]
[338513575,1726713046836,-1000.0,0.00018654,2]
[338513576,1726713046846,-1000.0,0.00018654,2]
[338513577,1726713046858,-1000.0,0.00018654,2]
[338513578,1726713046869,-1000.0,0.00018654,2]
[338513579,1726713046878,-1000.0,0.00018654,2]
[338513580,1726713046887,-1000.0,0.00018654,2]
[338513581,1726713046897,-1000.0,0.00018654,2]
[338513582,1726713046907,-1000.0,0.00018654,2]
[338513583,1726713046918,-1000.0,0.00018654,2]
[338513584,1726713046928,-1000.0,0.00018654,2]
[338513585,1726713046938,-1081.048732,0.00018654,2]
[338513586,1726713046948,-328.468785,0.00018654,2]
[338513587,1726713046960,-328.468785,0.00018654,2]
[338513588,1726713046971,-328.468785,0.00018654,2]
[338513589,1726713046981,-328.468785,0.00018654,2]
[338513590,1726713046992,-328.468785,0.00018654,2]
[338513591,1726713047003,-328.468785,0.00018654,2]
[338513592,1726713047014,-1182.021974,0.00018654,2]
[338513593,1726713047025,-1052.151176,0.00018654,2]
[338513594,1726713047035,-1052.151176,0.00018654,2]
[338513595,1726713047046,-1052.151176,0.00018654,2]
[338513596,1726713047055,-1182.021974,0.00018654,2]
[338513597,1726713047065,-1052.151176,0.00018654,2]
[338513598,1726713047076,-151.0,0.00018654,2]
[338513599,1726713047086,-1052.151176,0.00018654,2]
[338513600,1726713047097,-1052.151176,0.00018654,2]
[338513601,1726713047108,-764.110712,0.00018654,2]
[338513602,1726713047119,-764.110712,0.00018654,2]
[338513603,1726713047129,-764.110712,0.00018654,2]
[338513604,1726713047141,-151.0,0.00018654,2]
[338513605,1726713047151,-764.110712,0.00018654,2]
[338513606,1726713047161,-764.110712,0.00018654,2]
[338513607,1726713047170,-764.110712,0.00018654,2]
[338513608,1726713047180,-219.334461,0.00018654,2]
[338513609,1726713047189,-219.334461,0.00018654,2]
[338513610,1726713047198,-219.334461,0.00018654,2]
[338513611,1726713047207,-361.737744,0.00018654,2]
[338513612,1726713047216,-219.334461,0.00018654,2]
[338513613,1726713047225,-361.737744,0.00018654,2]
[338513614,1726713047234,-219.334461,0.00018654,2]
[338513615,1726713047243,-361.737744,0.00018654,2]
[338513616,1726713047253,-219.334455,0.00018654,2]
[338513617,1726713047262,-361.737744,0.00018654,2]
[338513618,1726713047272,-361.737744,0.00018654,2]
[338513619,1726713047282,-361.73775,0.00018654,2]
[338513620,1726713047293,-618.46827,0.00018654,2]
[338513621,1726713047303,-618.46827,0.00018654,2]
[338513622,1726713047314,-618.46827,0.00018654,2]
[338513623,1726713047326,-618.46827,0.00018654,2]
[338513624,1726713047337,-431.051198,0.00018654,2]
[338513625,1726713047347,-431.051198,0.00018654,2]
[338513626,1726713047358,-431.051198,0.00018654,2]
[338513627,1726713047368,-431.051198,0.00018654,2]
[338513628,1726713047378,-431.051198,0.00018654,2]
[338513629,1726713047388,-151.0,0.00018654,2]
[338513630,1726713047399,-431.051204,0.00018654,2]
[338513631,1726713047409,-151.0,0.00018654,2]
[338513632,1726713047418,-151.0,0.00018654,2]
[338513633,1726713047428,-162.452497,0.00018654,2]
[338513634,1726713047438,-792.112847,0.00018654,2]
[338513635,1726713047448,-792.112847,0.00018654,2]
[338513636,1726713047458,-151.0,0.00018654,2]
[338513637,1726713047467,-151.0,0.00018654,2]
[338513638,1726713047477,-792.112847,0.00018654,2]
[338513639,1726713047486,-792.112856,0.00018654,2]
[338513640,1726713047495,-1167.101132,0.00018654,2]
[338513641,1726713047504,-1167.101132,0.00018654,2]
[338513642,1726713047513,-1167.101132,0.00018654,2]
[338513643,1726713047522,-1167.101129,0.00018654,2]
[338513644,1726713047532,-268.716473,0.00018654,2]
[338513645,1726713047541,-268.716473,0.00018654,2]
[338513646,1726713047551,-1285.332963,0.00018654,2]
[338513647,1726713047560,-1285.332963,0.00018654,2]
[338513648,1726713047570,-268.716473,0.00018654,2]
[338513649,1726713047582,-268.716475,0.00018654,2]
[338513650,1726713047592,-1285.332963,0.00018654,2]
[338513651,1726713047602,-1285.33297,0.00018654,2]
[338513652,1726713047611,-740.459773,0.00018654,2]
[338513653,1726713047622,-740.459776,0.00018654,2]
[338513654,1726713047632,-7302.714415,0.00018654,2]
[338513655,1726713047643,-7302.714415,0.00018654,2]
[338513656,1726713047652,-7302.714415,0.00018654,2]
[338513657,1726713047662,-7302.714416,0.00018654,2]
[338513658,1726713047671,-151.0,0.00018654,2]
[338513659,1726713047682,-408.71511,0.00018654,2]
[338513660,1726713047693,-408.71511,0.00018654,2]
[338513661,1726713047703,-1305.504111,0.00018654,2]
[338513662,1726713047713,-1305.504107,0.00018654,2]
[338513663,1726713047724,-1906.867415,0.00018654,2]
[338513664,1726713047736,-1906.867415,0.00018654,2]
[338513665,1726713047757,-1906.867415,0.00018654,2]
[338513666,1726713047772,-1906.867415,0.00018654,2]
[338513667,1726713047784,-1906.867415,0.00018654,2]
[338513668,1726713047795,-1906.867423,0.00018654,2]
[338513669,1726713047806,-574.275837,0.00018655,2]
[338513670,1726713047817,-168.516455,0.00018655,2]
[338513671,1726713047828,-572.70464,0.00018655,2]
[338513672,1726713047838,-151.0,0.00018655,2]
[338513673,1726713047851,-151.0,0.00018655,2]
[338513674,1726713047862,-151.0,0.00018655,2]
[338513675,1726713047874,-260.065169,0.00018655,2]
[338513676,1726713047884,-151.0,0.00018655,2]
[338513677,1726713047896,-151.0,0.00018655,2]
[338513678,1726713047906,-1236.458,0.00018655,2]
[338513679,1726713047917,-1236.458,0.00018655,2]
[338513680,1726713047926,-1236.458,0.00018655,2]
[338513681,1726713047936,-1236.458,0.00018655,2]
[338513682,1726713047946,-151.0,0.00018655,2]
[338513683,1726713047955,-151.0,0.00018655,2]
[338513684,1726713047965,-151.0,0.00018655,2]
[338513685,1726713047974,-151.0,0.00018655,2]
[338513686,1726713047985,-151.0,0.00018655,2]
[338513687,1726713047996,-151.0,0.00018655,2]
[338513688,1726713048006,-752.861092,0.00018655,2]
[338513689,1726713048015,-752.861092,0.00018655,2]
[338513690,1726713048026,-153.385298,0.00018655,2]
[338513691,1726713048036,-752.861092,0.00018655,2]
[338513692,1726713048046,-752.861092,0.00018655,2]
[338513693,1726713048055,-220.045586,0.00018655,2]
[338513694,1726713048065,-220.045586,0.00018655,2]
[338513695,1726713048075,-220.045586,0.00018655,2]
[338513696,1726713048085,-220.045586,0.00018655,2]
[338513697,1726713048095,-328.468785,0.00018655,2]
[338513698,1726713048105,-328.468785,0.00018655,2]
[338513699,1726713048115,-328.468785,0.00018655,2]
[338513700,1726713048125,-328.468783,0.00018655,2]
[338513701,1726713048135,-1182.021974,0.00018655,2]
[338513702,1726713048146,-1052.151176,0.00018655,2]
[338513703,1726713048155,-1052.151176,0.00018655,2]
[338513704,1726713048165,-1182.021974,0.00018655,2]
[338513705,1726713048175,-1052.151176,0.00018655,2]
[338513706,1726713048184,-1052.151172,0.00018655,2]
[338513707,1726713048194,-764.110712,0.00018655,2]
[338513708,1726713048204,-151.0,0.00018655,2]
[338513709,1726713048214,-764.110712,0.00018655,2]
[338513710,1726713048224,-764.110712,0.00018655,2]
[338513711,1726713048234,-764.110708,0.00018655,2]
[338513712,1726713048243,-618.46827,0.00018655,2]
[338513713,1726713048379,-618.46827,0.00018655,2]
[338513714,1726713048389,-153.44862,0.00018655,2]
[338513715,1726713048400,-161.306987,0.00018655,2]
[338513716,1726713048410,-151.0,0.00018662,2]
[338513717,1726713048424,-161.67389,0.00018662,2]
[338513718,1726713048435,-161.67389,0.00018662,2]
[338513719,1726713048445,-151.0,0.00018662,2]
[338513720,1726713048456,-151.0,0.00018662,2]
[338513721,1726713048467,-233.611549,0.00018662,2]
[338513722,1726713048476,-151.0,0.00018662,2]
[338513723,1726713048486,-151.0,0.00018662,2]
[338513724,1726713048495,-151.0,0.00018662,2]
[338513725,1726713048504,-220.045586,0.00018662,2]
[338513726,1726713048513,-220.045586,0.00018662,2]
[338513727,1726713048522,-1182.021974,0.00018662,2]
[338513728,1726713048532,-1182.021974,0.00018662,2]
[338513729,1726713048541,-151.0,0.00018662,2]
[338513730,1726713048550,-1182.021974,0.00018663,2]
[338513731,1726713048560,-1182.021974,0.00018663,2]
[338513732,1726713048569,-151.0,0.00018663,2]
[338513733,1726713048580,-151.0,0.00018664,2]
[338513734,1726713048589,-151.0,0.00018664,2]
[338513735,1726713048599,-156.397902,0.00018664,2]
[338513736,1726713048608,-151.0,0.00018664,2]
[338513737,1726713048617,-156.397902,0.00018664,2]
[338513738,1726713048627,-151.0,0.00018664,2]
[338513739,1726713048636,-151.0,0.00018664,2]
[338513740,1726713048645,-151.0,0.00018664,2]
[338513741,1726713048655,-161.67389,0.00018664,2]
[338513742,1726713048665,-592.407759,0.00018664,2]
[338513743,1726713048675,-592.407759,0.00018664,2]
[338513744,1726713048684,-161.67389,0.00018664,2]
[338513745,1726713048693,-592.407759,0.00018664,2]
[338513746,1726713048702,-592.407759,0.00018664,2]
[338513747,1726713048711,-151.0,0.00018664,2]
[338513748,1726713048720,-151.0,0.00018664,2]
[338513749,1726713048729,-151.0,0.00018664,2]
[338513750,1726713048739,-151.0,0.00018664,2]
[338513751,1726713048751,-151.0,0.00018664,2]
[338513752,1726713048760,-1236.458,0.00018664,2]
[338513753,1726713048770,-1236.458,0.00018664,2]
[338513754,1726713048779,-1236.458,0.00018664,2]
[338513755,1726713048790,-1236.458,0.00018664,2]
[338513756,1726713048799,-1236.458,0.00018664,2]
[338513757,1726713048808,-1236.45799408,0.00018664,2]
[338513758,1726713048817,-176.05543,0.00018664,2]
[338513759,1726713048829,-151.0,0.00018664,2]
[338513760,1726713048839,-203.179423,0.00018664,2]
[338513761,1726713048849,-752.861092,0.00018664,2]
[338513762,1726713048858,-752.861092,0.00018664,2]
[338513763,1726713048868,-752.861092,0.00018664,2]
[338513764,1726713048877,-752.861092,0.00018664,2]
[338513765,1726713048887,-752.861092,0.00018664,2]
[338513766,1726713048896,-752.861101,0.00018664,2]
[338513767,1726713048906,-220.045586,0.00018664,2]
[338513768,1726713048915,-220.045579,0.00018664,2]
[338513769,1726713048924,-1182.021974,0.00018664,2]
[338513770,1726713048934,-1182.021974,0.00018664,2]
[338513771,1726713048943,-1182.021974,0.00018664,2]
[338513772,1726713048952,-1182.021974,0.00018664,2]
[338513773,1726713048962,-151.0,0.00018664,2]
[338513774,1726713048971,-153.197754,0.00018664,2]
[338513775,1726713048981,-618.46827,0.00018664,2]
[338513776,1726713048991,-618.468266,0.00018664,2]
[338513777,1726713049000,-227.254152,0.00018665,2]
[338513778,1726713049010,-152.382891,0.00018665,2]
[338513779,1726713049021,-152.682953,0.00018665,2]
[338513780,1726713049032,-156.397902,0.00018665,2]
[338513781,1726713049043,-151.0,0.00018665,2]
[338513782,1726713049053,-156.397902,0.00018665,2]
[338513783,1726713049062,-151.0,0.00018665,2]
[338513784,1726713049072,-151.0,0.00018665,2]
[338513785,1726713049091,-161.67389,0.00018665,2]
[338513786,1726713049102,-592.407759,0.00018665,2]
[338513787,1726713049111,-161.67389,0.00018665,2]
[338513788,1726713049121,-592.407759,0.00018665,2]
[338513789,1726713049131,-151.0,0.00018665,2]
[338513790,1726713049141,-151.0,0.00018665,2]
[338513791,1726713049151,-500.0,0.00018673,2]
[338513792,1726713049162,-500.0,0.00018673,2]
[338513793,1726713049171,-591.69941973,0.00018673,2]
[338513794,1726713049181,-500.0,0.00018673,2]
[338513795,1726713049191,-323.84011614,0.00018673,2]
[338513796,1726713049200,-500.0,0.00018673,2]
[338513797,1726713049209,-500.77493312,0.00018673,2]
[338513798,1726713049218,-500.86436813,0.00018673,2]
[338513799,1726713049228,-500.0,0.00018673,2]
[338513800,1726713049237,-500.0,0.00018673,2]
[338513801,1726713049246,-500.0,0.00018673,2]
[338513802,1726713049256,-386.77468933,0.00018673,2]
[338513803,1726713049278,-500.0,0.00018673,2]
[338513804,1726713049295,-500.0,0.00018673,2]
[338513805,1726713049314,-500.0,0.00018673,2]
[338513806,1726713049350,-500.0,0.00018673,2]
[338513807,1726713049374,-500.0,0.00018673,2]
[338513808,1726713049399,-171.39768829,0.00018673,2]
[338513809,1726713049418,-500.0,0.00018673,2]
[338513810,1726713049435,-500.0,0.00018673,2]
[338513811,1726713049458,-696.20963389,0.00018673,2]
[338513812,1726713050632,-485.81234011,0.00018673,2]
[338513813,1726713050643,-1182.021965,0.00018673,2]
[338513814,1726713050653,-156.397902,0.00018674,2]
[338513815,1726713050662,-156.904079,0.00018674,2]
[338513816,1726713050671,-156.397902,0.00018674,2]
[338513817,1726713050680,-151.0,0.00018674,2]
[338513818,1726713050689,-300.364786,0.00018674,2]
[338513819,1726713050699,-161.67389,0.00018674,2]
[338513820,1726713050708,-592.407759,0.00018674,2]
[338513821,1726713050717,-161.67389,0.00018674,2]
[338513822,1726713050726,-592.407759,0.00018674,2]
[338513823,1726713050735,-151.0,0.00018674,2]
[338513824,1726713050748,-151.0,0.00018674,2]
[338513825,1726713050758,-151.0,0.00018674,2]
[338513826,1726713050767,-156.397902,0.00018675,2]
[338513827,1726713050776,-156.397902,0.00018675,2]
[338513828,1726713050786,-156.397902,0.00018675,2]
[338513829,1726713050796,-156.397902,0.00018675,2]
[338513830,1726713050805,-156.397902,0.00018675,2]
[338513831,1726713050814,-156.397902,0.00018675,2]
[338513832,1726713050825,-156.397902,0.00018675,2]
[338513833,1726713050835,-156.397902,0.00018675,2]
[338513834,1726713050844,-151.0,0.00018675,2]
[338513835,1726713050853,-151.0,0.00018675,2]
[338513836,1726713050863,-151.0,0.00018675,2]
[338513837,1726713050872,-151.0,0.00018675,2]
[338513838,1726713050881,-161.67389,0.00018675,2]
[338513839,1726713050892,-161.67389,0.00018675,2]
[338513840,1726713050903,-161.67389,0.00018675,2]
[338513841,1726713050915,-161.67389,0.00018675,2]
[338513842,1726713050925,-592.407759,0.00018675,2]
[338513843,1726713050934,-161.67389,0.00018675,2]
[338513844,1726713050944,-592.407759,0.00018675,2]
[338513845,1726713050956,-592.407759,0.00018675,2]
[338513846,1726713050966,-592.407759,0.00018675,2]
[338513847,1726713050977,-161.67389,0.00018675,2]
[338513848,1726713050988,-161.67389,0.00018675,2]
[338513849,1726713050999,-161.67389,0.00018675,2]
[338513850,1726713051009,-161.67389,0.00018675,2]
[338513851,1726713051019,-161.67389,0.00018675,2]
[338513852,1726713051029,-592.407759,0.00018675,2]
[338513853,1726713051039,-592.407759,0.00018675,2]
[338513854,1726713051048,-592.407759,0.00018675,2]
[338513855,1726713051058,-592.407759,0.00018675,2]
[338513856,1726713051067,-151.0,0.00018675,2]
[338513857,1726713051090,-151.0,0.00018675,2]
[338513858,1726713051100,-153.043775,0.00018675,2]
[338513859,1726713051111,-184.293861,0.00018675,2]
[338513860,1726713051122,-151.0,0.00018675,2]
[338513861,1726713051133,-151.0,0.00018675,2]
[338513862,1726713051146,-151.0,0.00018675,2]
[338513863,1726713051156,-151.0,0.00018675,2]
[338513864,1726713051169,-152.340577,0.00018684,2]
[338513865,1726713051180,-592.407759,0.00018684,2]
[338513866,1726713051190,-592.407759,0.00018684,2]
[338513867,1726713051204,-500.0,0.00018684,2]
[338513868,1726713051214,-184.293861,0.00018684,2]
[338513869,1726713051225,-307.083932,0.00018685,2]
[338513870,1726713051236,-307.083932,0.00018685,2]
[338513871,1726713051246,-151.0,0.00018685,2]
[338513872,1726713051258,-156.397902,0.00018685,2]
[338513873,1726713051269,-156.397902,0.00018685,2]
[338513874,1726713051280,-156.397902,0.00018685,2]
[338513875,1726713051291,-156.397902,0.00018685,2]
[338513876,1726713051301,-156.397902,0.00018685,2]
[338513877,1726713051312,-156.397899,0.00018685,2]
[338513878,1726713051323,-161.67389,0.00018685,2]
[338513879,1726713051336,-592.407759,0.00018685,2]
[338513880,1726713051348,-161.673898,0.00018685,2]
[338513881,1726713051358,-592.40776,0.00018685,2]
[338513882,1726713051368,-184.293858,0.00018685,2]
[338513883,1726713051378,-150.01,0.00018694,2]
[338513884,1726713051388,-5068.57230615,0.00018694,2]
[338513885,1726713051398,-151.0,0.00018695,2]
[338513886,1726713051408,-151.0,0.00018696,2]
[338513887,1726713051420,-151.0,0.00018696,2]
[338513888,1726713051431,-150.112233,0.000187,2]
[338513889,1726713051443,-150.112233,0.000187,2]
[338513890,1726713051453,-150.112233,0.000187,2]
[338513891,1726713051462,-150.112233,0.000187,2]
[338513892,1726713051474,-160.227621,0.000187,2]
[338513893,1726713051485,-150.112233,0.000187,2]
[338513894,1726713051497,-150.112233,0.000187,2]
[338513895,1726713051508,-150.112233,0.000187,2]
[338513896,1726713051518,-150.112233,0.000187,2]
[338513897,1726713051528,-150.112233,0.000187,2]
[338513898,1726713051538,-150.112233,0.000187,2]
[338513899,1726713051548,-307.083932,0.00018706,2]
[338513900,1726713051558,-307.083932,0.00018706,2]
[338513901,1726713051569,-307.083932,0.00018706,2]
[338513902,1726713051580,-307.083932,0.00018706,2]
[338513903,1726713051590,-151.0,0.00018706,2]
[338513904,1726713051600,-151.0,0.00018716,2]
[338513905,1726713051610,-151.0,0.00018726,2]
[338513906,1726713051620,-307.083932,0.00018736,2]
[338513907,1726713051629,-307.083932,0.00018736,2]
[338513908,1726713051639,-307.083932,0.00018736,2]
[338513909,1726713051649,-307.083932,0.00018736,2]
[338513910,1726713051659,-307.083932,0.00018736,2]
[338513911,1726713051668,-307.083932,0.00018736,2]
[338513912,1726713051679,-151.0,0.00018736,2]
[338513913,1726713051688,-151.0,0.00018736,2]
[338513914,1726713051698,-246422.70981426,0.00018756,2]
[338513915,1726713052699,-88609.23844186,0.00018756,2]
[338513916,1726713052731,-47.12951853,0.00018756,2]
[338513917,1726713053739,-267.46515089,0.00018612,2]
[338513918,1726713053755,-283.28519999,0.00018612,2]
[338513919,1726713131261,579.9,0.00010959,2]
[338513922,1726713205434,2978.9,0.00024,120]
[338513927,1726713303751,400.0,0.00024,120]
[338513933,1726713341255,4000.0,0.00024,120]
[338513934,1726713342024,4000.0,0.00024,120]
[338513935,1726713342751,4000.0,0.00024,120]
[338513936,1726713343449,4000.0,0.00024,120]
[338513937,1726713344329,4000.0,0.00024,120]
[338513938,1726713344674,4000.0,0.00024,120]
[338513939,1726713345322,4000.0,0.00024,120]